{"text_format":"3","workbook":"xlsx","n_sheets":3,"sheets":["Sheet1","Sheet2","Sheet3"],"read":"whole","date_system":"1900"}

{"sheet":"Sheet1","index":0,"n_rows":87,"n_cols":9,"rows_kept":87}
["Janitorial Supplies Price Sheet"]
["Requisition #COF-092922"]
[]
["ITEM #","ITEM / DESCRIPTION","User","Estimated Annual Usage","UNIT OF MEASURE","UNIT PRICE","Extended Price","Check box if product varies from description ","ALTERNATE BID ITEM - List Product Information Below & Provide Product Specifications with Bid"]
["Column1","Column2","Column3","Column4","Column5","Column6","Column7","Column8","Column9"]
[1,"Aerosol, Dispenser Metered Spray, Cinnamon (12 cans per case)","MC, Library",12,"Case",null,{"$f":"Table1[[#This Row],[Column4]]*Table1[[#This Row],[Column6]]","v":{"v":0,"d":"$0.00"}}]
[2,"Can Liners, White, 24x32, 0.5 mil  (500/case of rolls)","CDD, FST, Library, Parks, PD, PW, MC",21,"Case",null,{"$f":"Table1[[#This Row],[Column4]]*Table1[[#This Row],[Column6]]","v":{"v":0,"d":"$0.00"}}]
[3,"Can Liners, White, 30x36, 0.8 mil (200/case of rolls)","GC, Parks, MC, FD",59,"Case",null,{"$f":"Table1[[#This Row],[Column4]]*Table1[[#This Row],[Column6]]","v":{"v":0,"d":"$0.00"}}]
[4,"Can Liners, Black, 33x39, .5 mil (100/case of rolls)","CDD, Library, MC",9,"Case",null,{"$f":"Table1[[#This Row],[Column6]]*Table1[[#This Row],[Column4]]","v":{"v":0,"d":"$0.00"}}]
[5,"Can Liners, Black, 33x39, 2 mil (100/case of rolls)","FST",30,"Case",null,{"$f":"Table1[[#This Row],[Column4]]*Table1[[#This Row],[Column6]]","v":{"v":0,"d":"$0.00"}}]
[6,"Can Liners, Black, 38x58, 1.6 mil (100/case of rolls)","GC, Parks, PD, PW, FD",118,"Case",null,{"$f":"Table1[[#This Row],[Column4]]*Table1[[#This Row],[Column6]]","v":{"v":0,"d":"$0.00"}}]
[7,"Can Liners, Black, 38x58, 2 mil (100/case of rolls)","FST",95,"Case",null,{"$f":"Table1[[#This Row],[Column4]]*Table1[[#This Row],[Column6]]","v":{"v":0,"d":"$0.00"}}]
[8,"Cleaner, Blue Cyclone All Purpose Neutral Cleaner (Gallon) No Substitution Dilution Rate 2 oz per gallon","CDD, FST, GC, Library, MC",30,"Each",null,{"$f":"Table1[[#This Row],[Column4]]*Table1[[#This Row],[Column6]]","v":{"v":0,"d":"$0.00"}}]
[9,"Cleaner, Clorox Bleach with Lemon","GC, Library",58,"Each",null,{"$f":"Table1[[#This Row],[Column4]]*Table1[[#This Row],[Column6]]","v":{"v":0,"d":"$0.00"}}]
[10,"Cleaner, Clorox Clean-Up Disinfectant Cleaner w/ Bleach (9 - 32oz bottles per case) No Substitution","Library",30,"Case",null,{"$f":"Table1[[#This Row],[Column4]]*Table1[[#This Row],[Column6]]","v":{"v":0,"d":"$0.00"}}]
[11,"Cleaner, Clorox Toilet Bowl cleaner with bleach (12 - 24oz bottles per case) No Substitution","GC",15,"Case",null,{"$f":"Table1[[#This Row],[Column4]]*Table1[[#This Row],[Column6]]","v":{"v":0,"d":"$0.00"}}]
[12,"Cleaner, Diversey Virex TB Ready-to-Use Disinfectant Cleaner (12 - 32oz bottles)","Library",7,"Case",null,{"$f":"Table1[[#This Row],[Column4]]*Table1[[#This Row],[Column6]]","v":{"v":0,"d":"$0.00"}}]
[13,"Cleaner, Kemzyme QT-Bacteria Enzyme Cleaner and Odor Remover (32 oz. bottle)","FST, GC, Parks, PD, MC",10,"Each",null,{"$f":"Table1[[#This Row],[Column4]]*Table1[[#This Row],[Column6]]","v":{"v":0,"d":"$0.00"}}]
[14,"Cleaner, Lysol Disinfectant Cleaner - Gallon No Substitution","FST, Library, Parks, PD, PW, MC",1,"Each",null,{"$f":"Table1[[#This Row],[Column4]]*Table1[[#This Row],[Column6]]","v":{"v":0,"d":"$0.00"}}]
[15,"Cleaner, Multi-Use Cleaner (1 Gallon) (2/case) Pine Sol, Mr. Clean etc.","FST, Parks, PD, MC",70,"Case",null,{"$f":"Table1[[#This Row],[Column4]]*Table1[[#This Row],[Column6]]","v":{"v":0,"d":"$0.00"}}]
[16,"Cleaner, Zep Neutral pH Floor Cleaner (1 Gallon) (2/case)","FD",5,"Case",null,{"$f":"Table1[[#This Row],[Column4]]*Table1[[#This Row],[Column6]]","v":{"v":0,"d":"$0.00"}}]
[17,"Cleaner, Wow Stainless steel cleaner (16oz bottle)","GC",1,"Each",null,{"$f":"Table1[[#This Row],[Column4]]*Table1[[#This Row],[Column6]]","v":{"v":0,"d":"$0.00"}}]
[18,"Cups, Foam 8 oz (1000/case)","Parks, PW",14,"Case",null,{"$f":"Table1[[#This Row],[Column4]]*Table1[[#This Row],[Column6]]","v":{"v":0,"d":"$0.00"}}]
[19,"Cups, Foam 10 oz (1000/case)","MC",10,"Case",null,{"$f":"Table1[[#This Row],[Column4]]*Table1[[#This Row],[Column6]]","v":{"v":0,"d":"$0.00"}}]
[20,"Cups, Foam 12 oz (1000/case)","Parks, MC",10,"Case",null,{"$f":"Table1[[#This Row],[Column4]]*Table1[[#This Row],[Column6]]","v":{"v":0,"d":"$0.00"}}]
[21,"Cups, Foam 16 oz (1000/case)","PW, MC, FD",36,"Case",null,{"$f":"Table1[[#This Row],[Column4]]*Table1[[#This Row],[Column6]]","v":{"v":0,"d":"$0.00"}}]
[22,"Detergent, Dawn Platinum Dishwashing Liquid Dish Soap , 90oz. bottle  No Substitutions","FST, GC, Library, PD, PW, MC, FD",52,"Each",null,{"$f":"Table1[[#This Row],[Column4]]*Table1[[#This Row],[Column6]]","v":{"v":0,"d":"$0.00"}}]
[23,"Disinfectant, Diversey™ Crew® Neutral Non-Acid Bowl And Bathroom Disinfectant (12 - 32oz bottles per case)","Library",10,"Case",null,{"$f":"Table1[[#This Row],[Column4]]*Table1[[#This Row],[Column6]]","v":{"v":0,"d":"$0.00"}}]
[24,"Disinfectant, Hepastat 256,  (1 Gallon) (2/case) Dilution Rate 1/2 oz per gallon","GC, Library, Parks, PD, MC, FD",5,"Case",null,{"$f":"Table1[[#This Row],[Column4]]*Table1[[#This Row],[Column6]]","v":{"v":0,"d":"$0.00"}}]
[25,"Disinfectant, Lysol Aerosal Lemon Sented (19 oz bottle) No Substitution ","GC",29,"Each",null,{"$f":"Table1[[#This Row],[Column4]]*Table1[[#This Row],[Column6]]","v":{"v":0,"d":"$0.00"}}]
[26,"Disinfectant, Microban 24 Hour Disinfectant Sanitizing Spray, Citrus (15 oz bottle)","Library",2,"Each",null,{"$f":"Table1[[#This Row],[Column4]]*Table1[[#This Row],[Column6]]","v":{"v":0,"d":"$0.00"}}]
[27,"Disinfectant, Odoban,  (1 Gallon) (4/case) Dilution Rate 4 oz per gallon","FST, GC, PD, MC",4,"Case",null,{"$f":"Table1[[#This Row],[Column4]]*Table1[[#This Row],[Column6]]","v":{"v":0,"d":"$0.00"}}]
[28,"Disinfectant, Spartan NABC (12 quarts per case) No Subsitution","PD",7,"Case",null,{"$f":"Table1[[#This Row],[Column4]]*Table1[[#This Row],[Column6]]","v":{"v":0,"d":"$0.00"}}]
[29,"Glass Cleaner, Windex (32 oz Trigger Spray 8 per case) No Substitution","FST, GC, PD, PW, Library",17,"Each",null,{"$f":"Table1[[#This Row],[Column4]]*Table1[[#This Row],[Column6]]","v":{"v":0,"d":"$0.00"}}]
[30,"Glass Cleaner, Windex, 5 gallon bag in box  No Substitution","CDD, FST, GC, PW, MC",2,"Each",null,{"$f":"Table1[[#This Row],[Column4]]*Table1[[#This Row],[Column6]]","v":{"v":0,"d":"$0.00"}}]
[31,"Gloves, Ansell Microflex Midknight Powder Free Nitrile Exam Glove, MK-296-M - Medium (100/box 10 box/case)  No Substitutions","FD",5,"Case",null,{"$f":"Table1[[#This Row],[Column4]]*Table1[[#This Row],[Column6]]","v":{"v":0,"d":"$0.00"}}]
[32,"Gloves, Ansell Microflex Midknight Powder Free Nitrile Exam Glove, MK-296-L - Large (100/box 10 box/case) No Substitutions","FD",5,"Case",null,{"$f":"Table1[[#This Row],[Column4]]*Table1[[#This Row],[Column6]]","v":{"v":0,"d":"$0.00"}}]
[33,"Gloves, Ansell Microflex Midknight Powder Free Nitrile Exam Glove, MK-296-XL - X Large (100/box 10 box/case) No Substitutions","FD",5,"Case",null,{"$f":"Table1[[#This Row],[Column4]]*Table1[[#This Row],[Column6]]","v":{"v":0,"d":"$0.00"}}]
[34,"Gloves, Blue Rhino Nitrile Powder Free, 6.0 mil thickness - Small (100/box)","Parks, PD",79,"Box",null,{"$f":"Table1[[#This Row],[Column4]]*Table1[[#This Row],[Column6]]","v":{"v":0,"d":"$0.00"}}]
[35,"Gloves, Blue Rhino Nitrile Powder Free, 6.0 mil thickness - Medium (100/box)","FST, Parks, PD, MC",123,"Box",null,{"$f":"Table1[[#This Row],[Column4]]*Table1[[#This Row],[Column6]]","v":{"v":0,"d":"$0.00"}}]
[36,"Gloves, Blue Rhino Nitrile Powder Free, 6.0 mil thickness - Large (100/box)","FST, Parks, PD, PW, MC",140,"Box",null,{"$f":"Table1[[#This Row],[Column4]]*Table1[[#This Row],[Column6]]","v":{"v":0,"d":"$0.00"}}]
[37,"Gloves, Blue Rhino Nitrile Powder Free, 6.0 mil thickness -X Large (100/box)","FST, Parks, PD, PW, MC",105,"Box",null,{"$f":"Table1[[#This Row],[Column4]]*Table1[[#This Row],[Column6]]","v":{"v":0,"d":"$0.00"}}]
[38,"Gloves, Nitrile Powder Free, Black - X Large (100/box)","Library",1,"Box",null,{"$f":"Table1[[#This Row],[Column4]]*Table1[[#This Row],[Column6]]","v":{"v":0,"d":"$0.00"}}]
[39,"Gloves, Latex Powder Free - Small (100/box)","Parks",9,"Box",null,{"$f":"Table1[[#This Row],[Column4]]*Table1[[#This Row],[Column6]]","v":{"v":0,"d":"$0.00"}}]
[40,"Gloves, Latex Powder Free - Medium (100/box)","FST, Parks, PD, MC",9,"Box",null,{"$f":"Table1[[#This Row],[Column4]]*Table1[[#This Row],[Column6]]","v":{"v":0,"d":"$0.00"}}]
[41,"Gloves, Latex Powder Free - Large (100/box)","FST, Parks, PD, PW, MC",97,"Box",null,{"$f":"Table1[[#This Row],[Column4]]*Table1[[#This Row],[Column6]]","v":{"v":0,"d":"$0.00"}}]
[42,"Gloves, Latex Powder Free - Xlarge (100/box)","FST, Parks, PD, PW, MC",85,"Box",null,{"$f":"Table1[[#This Row],[Column4]]*Table1[[#This Row],[Column6]]","v":{"v":0,"d":"$0.00"}}]
[43,"Laundry Solution, Enzyme Cleaner - 5 gallon pail","FST, PD",10,"Each",null,{"$f":"Table1[[#This Row],[Column4]]*Table1[[#This Row],[Column6]]","v":{"v":0,"d":"$0.00"}}]
[44,"Laundry Solution, Purex Free and Clear Liquid Laundry Detergent","PD",1,"Each",null,{"$f":"Table1[[#This Row],[Column6]]*Table1[[#This Row],[Column4]]","v":{"v":0,"d":"$0.00"}}]
[45,"Paper Towels, Center Pull (white), 2 ply, 600 sheets per roll, 450' per roll (6 rolls per case)","CDD, FST, PD, Parks",402,"Case",null,{"$f":"Table1[[#This Row],[Column4]]*Table1[[#This Row],[Column6]]","v":{"v":0,"d":"$0.00"}}]
[46,"Paper Towels, C-Fold 1 ply Bleached (2400 sheets)","CDD, MC",21,"Case",null,{"$f":"Table1[[#This Row],[Column4]]*Table1[[#This Row],[Column6]]","v":{"v":0,"d":"$0.00"}}]
[47,"Paper Towels, Hardwound 700' (6 rolls per case)","MC",1,"Case",null,{"$f":"Table1[[#This Row],[Column4]]*Table1[[#This Row],[Column6]]","v":{"v":0,"d":"$0.00"}}]
[48,"Paper Towels, Hardwound, 1 ply, 8\"x950' (6 rolls per case), Scott Brand - No Subsitution","PW, MC, Library, FD",36,"Case",null,{"$f":"Table1[[#This Row],[Column4]]*Table1[[#This Row],[Column6]]","v":{"v":0,"d":"$0.00"}}]
[49,"Paper Towels, Kitchen, Heavenly Soft (85 sheets per roll, 35 rolls per case)","Parks, PW, MC",13,"Case",null,{"$f":"Table1[[#This Row],[Column4]]*Table1[[#This Row],[Column6]]","v":{"v":0,"d":"$0.00"}}]
[50,"Paper Towels, Kitchen, Bounty Select-A-Size, 2 Ply, 108 sheets/roll, 12 rolls/pkg.  No Substitutions","FD",18,"Case",null,{"$f":"Table1[[#This Row],[Column4]]*Table1[[#This Row],[Column6]]","v":{"v":0,"d":"$0.00"}}]
[51,"Paper Towels, Shop, Standard Roll (55 sheets per roll, 12 rolls per case)","PW",8,"Case",null,{"$f":"Table1[[#This Row],[Column4]]*Table1[[#This Row],[Column6]]","v":{"v":0,"d":"$0.00"}}]
[52,"Paper Towels, White Multi-Fold, 2 ply, 9.25\"W x 9.5\"L, 250/pkg, 4000 per case","Library, PD, PW",59,"Case",null,{"$f":"Table1[[#This Row],[Column4]]*Table1[[#This Row],[Column6]]","v":{"v":0,"d":"$0.00"}}]
[53,"Paper Towels, Kleenex White Tri-Fold, 150/pk, 16 pks/case, 2,400 per case No Substitutions","FD",7,"Case",null,{"$f":"Table1[[#This Row],[Column4]]*Table1[[#This Row],[Column6]]","v":{"v":0,"d":"$0.00"}}]
[54,"Paper Towels, White Roll Towel 800' (6 rolls per case)","PD, PW",39,"Case",null,{"$f":"Table1[[#This Row],[Column4]]*Table1[[#This Row],[Column6]]","v":{"v":0,"d":"$0.00"}}]
[55,"Pet Waste Bags, 13 x 9 inches, Black (30 rolls per case / 200 bags) ","GC",165,"Case",null,{"$f":"Table1[[#This Row],[Column4]]*Table1[[#This Row],[Column6]]","v":{"v":0,"d":"$0.00"}}]
[56,"Polishing Floor Pad, 20\" Diameter, White (5 per box)","Library",4,"Box",null,{"$f":"Table1[[#This Row],[Column4]]*Table1[[#This Row],[Column6]]","v":{"v":0,"d":"$0.00"}}]
[57,"Saddle Mop Heads, Small (16oz)","Library",2,"Each",null,{"$f":"Table1[[#This Row],[Column4]]*Table1[[#This Row],[Column6]]","v":{"v":0,"d":"$0.00"}}]
[58,"Sanitizer, Purell, Green Certified Advanced Refreshing Gel and Hand Sanitizer, 1200 ML, Fragrance-Free (2 bottles per box)","Library",2,"Box",null,{"$f":"Table1[[#This Row],[Column4]]*Table1[[#This Row],[Column6]]","v":{"v":0,"d":"$0.00"}}]
[59,"Sanitizer, Purell Advanced Hand Sanitizer Refreshing Gel, Clean Scent, Pump Bottle, 8 oz. (12 bottles per case)","FD",1,"Case",null,{"$f":"Table1[[#This Row],[Column4]]*Table1[[#This Row],[Column6]]","v":{"v":0,"d":"$0.00"}}]
[60,"Sanitizer, Purell, Nxt Refill Advanced Gel Hand Sanitizer, 1000ml (8 bottles per case)","Library",5,"Case",null,{"$f":"Table1[[#This Row],[Column4]]*Table1[[#This Row],[Column6]]","v":{"v":0,"d":"$0.00"}}]
[61,"Shampoo, Dove Men + Care 2-in-1 Shampoo+Conditioner, 40 oz.","FD",48,"Each",null,{"$f":"Table1[[#This Row],[Column4]]*Table1[[#This Row],[Column6]]","v":{"v":0,"d":"$0.00"}}]
[62,"Soap, Dial, Antibacterial (Gallon)","MC",6,"Each",null,{"$f":"Table1[[#This Row],[Column4]]*Table1[[#This Row],[Column6]]","v":{"v":0,"d":"$0.00"}}]
[63,"Soap, Dial Complete Foaming Hand Wash Antibacterial, 7.5 oz. (4 bottles per case)","FD",18,"Case",null,{"$f":"Table1[[#This Row],[Column4]]*Table1[[#This Row],[Column6]]","v":{"v":0,"d":"$0.00"}}]
[64,"Soap, Foaming Antibacterial, 1 liter (8 per case)","FST, PD, MC",150,"Case",null,{"$f":"Table1[[#This Row],[Column4]]*Table1[[#This Row],[Column6]]","v":{"v":0,"d":"$0.00"}}]
[65,"Soap, STOKO Refresh® Foam Soaps, 800mL Refill (6 boxes per case)","FST, Library",171,"Case",null,{"$f":"Table1[[#This Row],[Column4]]*Table1[[#This Row],[Column6]]","v":{"v":0,"d":"$0.00"}}]
[66,"Swiffer Duster refills (4 boxes per case)","Library",1,"Case",null,{"$f":"Table1[[#This Row],[Column4]]*Table1[[#This Row],[Column6]]","v":{"v":0,"d":"$0.00"}}]
[67,"Tissue, Facial","Court, PD",25,"Each",null,{"$f":"Table1[[#This Row],[Column4]]*Table1[[#This Row],[Column6]]","v":{"v":0,"d":"$0.00"}}]
[68,"Tissue, Toilet Charmin Ultra Soft Toilet Paper Super Plus Roplls, 2-ply, 201 sheets/roll, 32 rolls/pkg.  No Substitutions","FD",12,"Case",null,{"$f":"Table1[[#This Row],[Column4]]*Table1[[#This Row],[Column6]]","v":{"v":0,"d":"$0.00"}}]
[69,"Tissue, Toilet 2-ply Heavenly Soft (96 per case)","CDD, Library, PD, PW, MC",84,"Case",null,{"$f":"Table1[[#This Row],[Column4]]*Table1[[#This Row],[Column6]]","v":{"v":0,"d":"$0.00"}}]
[70,"Tissue, Toilet Jumbo 9\" with core, 2ply 700' per roll (12 per case)","Parks, Library, GC",268,"Case",null,{"$f":"Table1[[#This Row],[Column4]]*Table1[[#This Row],[Column6]]","v":{"v":0,"d":"$0.00"}}]
[71,"Tissue, Toilet Junior Jumbo 9\", coreless, 2ply 700' per roll (12 per case)","FST, MC",73,"Case",null,{"$f":"Table1[[#This Row],[Column4]]*Table1[[#This Row],[Column6]]","v":{"v":0,"d":"$0.00"}}]
[72,"Toilet Bowl Air Freshener clips  (12 per box)","FST, GC",9,"Box",null,{"$f":"Table1[[#This Row],[Column4]]*Table1[[#This Row],[Column6]]","v":{"v":0,"d":"$0.00"}}]
[73,"Toilet Bowl Blocks, Cherry (12 per box)","PD",17,"Box",null,{"$f":"Table1[[#This Row],[Column4]]*Table1[[#This Row],[Column6]]","v":{"v":0,"d":"$0.00"}}]
[74,"Urinal Screens Wave Style (2 per box)","FST, Parks, PD, PW, Library, FD",65,"Box",null,{"$f":"Table1[[#This Row],[Column4]]*Table1[[#This Row],[Column6]]","v":{"v":0,"d":"$0.00"}}]
[75,"Wipes, Clorox Disinfectant (75 ct)","FST, Court, Parks, PD, MC",116,"Each",null,{"$f":"Table1[[#This Row],[Column4]]*Table1[[#This Row],[Column6]]","v":{"v":0,"d":"$0.00"}}]
[{"$nulls":6},{"$f":"SUBTOTAL(109,G6:G80)","v":{"v":0,"d":"$0.00"}},"Total"]
[]
[null,"Company:"]
[null,"Submitted By:"]
[null,"Address:"]
[]
[null,"Phone:"]

{"sheet":"Sheet2","index":1,"n_rows":0,"n_cols":0,"rows_kept":0}

{"sheet":"Sheet3","index":2,"n_rows":0,"n_cols":0,"rows_kept":0}